[Event "53rd Mar Del Plata Open 2024"]
[Site "Mar Del Plata"]
[Date "2024.03.29"]
[Round "7.9"]
[White "Spata, German"]
[Black "Petti, Luca Giovanni"]
[Result "1-0"]
[ECO "A28"]
[WhiteElo "2421"]
[BlackElo "2057"]
[Annotator "TA"]
[PlyCount "93"]
[EventDate "2024.03.23"]
[EventType "swiss"]
[EventCountry "ARG"]
[SourceTitle "playchess.com"]
[Source "ChessBase"]
[SourceQuality "1"]
[TimeControl "5400+30"]

{[%evp 10,93,3,0,12,0,0,0,17,17,9,21,26,0,16,15,6,7,12,14,14,11,14,20,91,82,89,87,89,93,97,85,93,75,91,72,70,64,77,79,79,79,91,95,102,82,83,86,79,79,389,87,83,0,411,87,83,26,124,88,91,86,571,571,518,182,432,119,552,537,968,947,940,521,513,513,513,513,504,498,1326,1326,29994,29995,29997,406]} 1. c4 {[%emt 0:02:56]} e5 {[%emt 0:00:33]} 2. Nc3 {[%emt 0:01:34]} Nf6 {[%emt 0:00:09]} 3. Nf3 {[%emt 0:00:18]} Nc6 {[%emt 0:01:14]} 4. e3 {[%emt 0:01:47]} Bb4 {[%emt 0:16:13]} 5. Qc2 {[%emt 0:00:10]} O-O {[%emt 0:05:43]} 6. d3 {[%emt 0:03:56]} d5 {[%emt 0:05:22]} 7. cxd5 {[%emt 0:00:14]} Nxd5 {[%emt 0:00:22][%cal Oc6d4]} 8. Be2 {[%emt 0:00:36]} Re8 {[%emt 0:03:12][%cal Oc6d4] The position is equal.} 9. O-O {[%emt 0:00:24]} Be6 {[%emt 0:03:28]} 10. a3 {[%emt 0:03:22] Hoping for Nxd5.} Bf8 {[%emt 0:00:08]} 11. Nxd5 {[%emt 0:02:02]} Bxd5 {[%emt 0:06:11]} 12. b4 {[%emt 0:05:14]} a6 {[%emt 0:14:51]} 13. Bb2 {[%emt 0:01:01]} f6 {[%emt 0:00:31]} 14. Rac1 {[%emt 0:02:19]} Qd7 {[%emt 0:03:15]} 15. Nd2 {[%emt 0:01:57]} Qf7 {[%emt 0:01:44]} 16. Ne4 {[%emt 0:01:55]} Bxe4 {[%emt 0:04:21]} (16... f5 $11 {remains equal.} 17. Nc5 Bxc5 18. Qxc5 Qd7) 17. dxe4 $16 {[%emt 0:00:22] Threatens to win with Bc4.} Kh8 {[%emt 0:00:01]} 18. Bc4 {[%emt 0:00:50]} Qe7 {[%emt 0:02:04]} 19. Bd5 {[%emt 0:02:05]} Qd7 {[%emt 0:01:46]} 20. Qa4 {[%emt 0:02:52][%cal Of1d1]} Reb8 {[%emt 0:06:59]} 21. h3 {[%emt 0:13:27]} Qe8 {[%emt 0:00:37]} 22. Bxc6 {[%emt 0:05:02]} bxc6 {[%emt 0:00:04]} 23. Rxc6 {[%emt 0:02:09]} Rb6 {[%emt 0:02:10]} 24. Rfc1 {[%emt 0:00:54]} a5 {[%emt 0:00:39]} 25. b5 {[%emt 0:03:48] White is much more active.} (25. bxa5 $2 Rxb2 26. a6 Ra2 $19) 25... Rab8 {[%emt 0:00:43]} 26. Rxb6 {[%emt 0:02:07]} (26. Qxa5 $2 {loses.} Rxb5 27. Qa6 Rxb2 $19) ({Of course not} 26. Rxc7 $6 Qxb5 27. Qxb5 Rxb5 $11) (26. Bc3 {simplifies} Rxb5 27. Bxa5 R5b7 28. Bd2) 26... Rxb6 {[%emt 0:00:02]} 27. Rxc7 {[%emt 0:10:13][%cal Oc7c6] Rc6! is the strong threat.} Qxb5 {[%emt 0:00:25] [#]} 28. Rc8 $1 {[%emt 0:01:14]} Kg8 {[%emt 0:00:43]} 29. Qd1 {[%emt 0:02:51][%cal Od1d8] White threatens Qd8! and mate.} (29. Qc2 {simplifies} Rb8 30. Rxb8 Qxb8 31. Bc3) 29... Kf7 $2 {[%emt 0:07:25][%mdl 8192]} (29... Rb8 $16 {is tougher.} 30. Rxb8 Qxb8) 30. Qh5+ $2 {[%emt 0:02:31]} (30. Qd8 $18 {has better winning chances.} Be7 31. Rc7) 30... Kg8 {[%emt 0:00:01] [#]} 31. Qd1 $2 $40 {[%emt 0:00:56][%mdl 8320] White attacks.} Kf7 $1 $18 {[%emt 0:00:02][%cal Ob6b8]} 32. Rc7+ $2 {[%emt 0:09:13]} (32. a4 $18 {is more deadly.} Qxb2 33. Qd7+ Be7 34. Qe8+ Ke6 35. Rc7) 32... Kg8 $16 {[%emt 0:01:42]} 33. Rc2 {[%emt 0:08:23]} (33. Qh5 $16 {Threatening mate with Qf7+.} Qb3 34. Bc3) 33... Kf7 {[%emt 0:06:07] [#]} (33... Qb3 $11 {keeps the balance.}) 34. a4 $1 {[%emt 0:00:49][%mdl 512]} Qb3 {[%emt 0:01:13][%cal Of7g8]} 35. Kh2 {[%emt 0:01:52]} Be7 $2 {[%emt 0:01:47][%mdl 8192]} (35... h6 $16) 36. Qh5+ $18 {[%emt 0:01:02]} Ke6 {[%emt 0:00:02]} 37. Rd2 {[%emt 0:01:51]} (37. Rc7 {[%cal Oh5e8] Intending Qe8! and mate.} Qxb2 38. Qe8) 37... Qxa4 {[%emt 0:00:29]} (37... Qb4 38. Bd4 Qxd2 39. Bxb6 Qd6) 38. Qxh7 $2 {[%emt 0:01:07]} (38. Bxe5 $18 {and the rest is easy.} Qc6 39. f4 (39. Qxh7 Kf7 $18)) 38... Qe8 $2 {[%emt 0:01:04][%mdl 8192]} (38... Kf7 $16) 39. Qxg7 {[%emt 0:00:58] And now f4 would win.} Qb8 {[%emt 0:01:22] [#]} 40. Ba3 {[%emt 0:00:54][%mdl 512]} Rb7 {[%emt 0:00:31]} 41. Qg4+ {[%emt 0:01:18]} Kf7 {[%emt 0:00:01]} 42. Qh5+ {[%emt 0:01:07]} Kg7 {[%emt 0:00:35]} 43. Bxe7 {[%emt 0:00:22]} Rxe7 {[%emt 0:00:01]} 44. Qd1 {[%emt 0:00:23] Rd8 would now be deadly.} Ra7 {[%emt 0:01:10]} (44... Qe8 $142 45. Rd8 Qg6) 45. Rd8 {[%emt 0:00:26]} Qb5 {[%emt 0:00:41]} 46. Qg4+ {[%emt 0:00:18]} Kf7 {[%emt 0:00:17]} 47. Qg8+ {[%emt 0:02:51] Weighted Error Value: White=0.63/Black=0.84.  Loses game:     	---       	Black=3      Missed win:     	White=3     	---        Mistake:       	White=3     	Black=4      Inaccurate:     	White=1     	Black=2      OK:         	White=15    	Black=11     Best:        	White=4     	Black=2      Strong:       	---       	Black=1      Brilliant:      	White=1     	---} 1-0

[Event "53rd Mar Del Plata Open 2024"]
[Site "Mar Del Plata"]
[Date "2024.03.29"]
[Round "7.10"]
[White "Flores, Diego"]
[Black "Coro, Lucas"]
[Result "1-0"]
[ECO "A29"]
[WhiteElo "2530"]
[BlackElo "2316"]
[Annotator "RC"]
[PlyCount "119"]
[EventDate "2024.03.23"]
[EventType "swiss"]
[EventCountry "ARG"]
[SourceTitle "playchess.com"]
[Source "ChessBase"]
[SourceQuality "1"]
[TimeControl "5400+30"]

1. c4 {[%emt 0:00:36]} e5 {[%emt 0:01:33]} 2. Nc3 {[%emt 0:02:36]} Nf6 {[%emt 0:00:25]} 3. Nf3 {[%emt 0:02:29]} Nc6 {[%emt 0:01:47]} 4. g3 {[%emt 0:00:51]} d5 {[%emt 0:09:09]} 5. cxd5 {[%emt 0:00:08]} Nxd5 {[%emt 0:00:05]} 6. Bg2 {[%emt 0:00:06]} Nb6 {[%emt 0:00:23]} 7. O-O {[%emt 0:00:24]} Be7 {[%emt 0:00:05]} 8. d3 {[%emt 0:05:09]} O-O {[%emt 0:00:11]} 9. Be3 {[%emt 0:03:30]} Re8 {[%emt 0:02:35]} 10. a4 {[%emt 0:06:37]} a5 {[%emt 0:08:48]} 11. Rc1 {[%emt 0:01:36]} Bf8 {[%emt 0:04:47]} 12. d4 {[%emt 0:11:52]} exd4 {[%emt 0:13:39]} 13. Nxd4 {[%emt 0:00:26]} Rxe3 {[%emt 0:14:41]} 14. fxe3 {[%emt 0:01:21]} Ne5 {[%emt 0:00:24]} 15. Qb3 {[%emt 0:14:13]} c6 {[%emt 0:06:36]} 16. Rcd1 {[%emt 0:03:52]} Qc7 {[%emt 0:01:57]} 17. Ne4 {[%emt 0:02:55]} Nd5 {[%emt 0:04:24]} 18. Ng5 {[%emt 0:01:11]} Qe7 {[%emt 0:02:58]} 19. e4 {[%emt 0:08:14]} Nc7 {[%emt 0:08:14]} 20. Rxf7 {[%emt 0:11:03]} Nxf7 {[%emt 0:00:11]} 21. Rf1 {[%emt 0:00:06]} Be6 {[%emt 0:01:33]} 22. Ndxe6 {[%emt 0:01:00]} Nxe6 {[%emt 0:00:27]} 23. Nxf7 {[%emt 0:01:26]} Re8 {[%emt 0:08:04]} 24. Bh3 {[%emt 0:01:18]} g6 {[%emt 0:01:36]} 25. e5 {[%emt 0:01:04]} Qc5+ {[%emt 0:01:48]} 26. e3 {[%emt 0:00:11]} Qd5 {[%emt 0:00:18]} 27. Qxd5 {[%emt 0:07:18]} cxd5 {[%emt 0:00:03]} 28. Nd6 {[%emt 0:00:42]} Re7 {[%emt 0:01:09]} 29. Bg2 {[%emt 0:07:00]} Nc7 {[%emt 0:01:26]} 30. Nxb7 {[%emt 0:00:29]} Bh6 {[%emt 0:01:26]} 31. Nxa5 {[%emt 0:00:20]} Rxe5 {[%emt 0:00:17]} 32. Nc6 {[%emt 0:01:54]} Rxe3 {[%emt 0:01:13]} 33. b4 {[%emt 0:00:26]} d4 {[%emt 0:02:12]} 34. b5 {[%emt 0:00:59]} Rb3 {[%emt 0:00:10]} 35. Ne5 {[%emt 0:02:33]} Be3+ {[%emt 0:00:14]} 36. Kh1 {[%emt 0:00:01]} d3 {[%emt 0:00:59]} 37. Nc4 {[%emt 0:00:37]} Bc5 {[%emt 0:01:30]} 38. Be4 {[%emt 0:01:26]} Rb4 {[%emt 0:00:02]} 39. Bxd3 {[%emt 0:00:18]} Rxa4 {[%emt 0:00:07]} 40. b6 {[%emt 0:01:23]} Na6 {[%emt 0:01:18]} 41. b7 {[%emt 0:00:19]} Nb8 {[%emt 0:00:52]} 42. Be4 {[%emt 0:00:24]} Rb4 {[%emt 0:01:01]} 43. Bd5+ {[%emt 0:00:07]} Kh8 {[%emt 0:00:13]} 44. Rd1 {[%emt 0:01:28]} Kg7 {[%emt 0:00:14]} 45. Rf1 {[%emt 0:00:14]} Kh8 {[%emt 0:00:08]} 46. Kg2 {[%emt 0:00:26]} Rb5 {[%emt 0:00:13]} 47. Ra1 {[%emt 0:00:32]} Kg7 {[%emt 0:01:14]} 48. Ra8 {[%emt 0:00:14]} Ba7 {[%emt 0:00:07]} 49. Rxa7 {[%emt 0:00:47]} Rxd5 {[%emt 0:00:05]} 50. Ra8 {[%emt 0:00:03]} Rd8 {[%emt 0:00:26]} 51. Ne5 {[%emt 0:00:04]} Rf8 {[%emt 0:00:16]} 52. h4 {[%emt 0:00:35]} h5 {[%emt 0:00:44]} 53. Kh3 {[%emt 0:00:39]} Rg8 {[%emt 0:00:25]} 54. Kh2 {[%emt 0:00:42]} Rf8 {[%emt 0:00:06]} 55. Kg2 {[%emt 0:00:06]} Rh8 {[%emt 0:02:07]} 56. Kf3 {[%emt 0:00:38]} Rf8+ {[%emt 0:00:44]} 57. Ke4 {[%emt 0:00:19]} Re8 {[%emt 0:00:29]} 58. Kd5 {[%emt 0:00:24]} Rd8+ {[%emt 0:00:16]} 59. Kc5 {[%emt 0:00:17]} Rf8 {[%emt 0:00:59]} 60. Kd6 {[%emt 0:00:38]} 1-0

[Event "53rd Mar Del Plata Open 2024"]
[Site "Mar Del Plata"]
[Date "2024.03.30"]
[Round "8.1"]
[White "Christiansen, Johan-Sebastian"]
[Black "Tristan, Leonardo"]
[Result "1-0"]
[ECO "C45"]
[WhiteElo "2633"]
[BlackElo "2521"]
[Annotator "TA"]
[PlyCount "69"]
[EventDate "2024.03.23"]
[EventType "swiss"]
[EventCountry "ARG"]
[SourceTitle "playchess.com"]
[Source "ChessBase"]
[SourceQuality "1"]
[TimeControl "5400+30"]

{[%evp 14,69,0,-1,14,0,0,0,0,0,14,0,0,0,5,0,0,8,138,133,153,168,164,151,165,146,152,154,156,163,151,152,157,158,167,168,167,165,156,167,174,135,132,132,479,482,470,465,624,624,1150,622,974,909,960,522,4132,1051]} 1. e4 {[%emt 0:02:24]} e5 {[%emt 0:00:06]} 2. Nf3 {[%emt 0:00:16]} Nc6 {[%emt 0:00:07]} 3. d4 {[%emt 0:02:02]} exd4 {[%emt 0:00:07]} 4. Nxd4 {[%emt 0:00:45]} Bc5 {[%emt 0:00:12]} 5. Nb3 {[%emt 0:01:53]} Bb6 {[%emt 0:00:07]} 6. Nc3 {[%emt 0:00:04]} Nf6 {[%emt 0:01:33]} 7. Bg5 {[%emt 0:00:02][%cal Bc1g5,Bg5h4,Bh4g3][%mdl 32]} h6 {[%emt 0:01:14]} 8. Bh4 {[%emt 0:00:05]} d6 {[%emt 0:01:06][%cal Of6e4]} 9. Qe2 {[%emt 0:05:38]} g5 {[%emt 0:01:27]} 10. Bg3 {[%emt 0:00:07]} Qe7 {[%emt 0:00:05] The position is equal.} 11. h4 {[%emt 0:04:13]} Rg8 {[%emt 0:22:43]} 12. hxg5 {[%emt 0:00:27]} hxg5 {[%emt 0:00:05]} 13. O-O-O {[%emt 0:04:58]} Be6 {[%emt 0:10:52]} 14. Qd2 {[%emt 0:19:57]} O-O-O {[%emt 0:07:21]} 15. Re1 {[%emt 0:03:51]} d5 {[%emt 0:16:43]} (15... a6 $11) 16. exd5 $16 {[%emt 0:15:10]} Nxd5 {[%emt 0:00:06]} 17. Nxd5 {[%emt 0:00:14]} Rxd5 {[%emt 0:00:05]} 18. Qxd5 {[%emt 0:00:17]} Bxd5 {[%emt 0:00:06]} 19. Rxe7 {[%emt 0:00:03]} Nxe7 {[%emt 0:00:06] [#]} 20. c4 $1 {[%emt 0:00:25][%cal Bc2c4,Bc4c5,Bc5b6,Bb6a7][%mdl 32]} Be6 {[%emt 0:00:38]} 21. c5 {[%emt 0:01:14]} Bxb3 {[%emt 0:00:22]} 22. cxb6 {[%emt 0:00:03]} Bd5 {[%emt 0:11:18]} 23. bxa7 {[%emt 0:04:15]} b5 {[%emt 0:00:05]} 24. Bxb5 {[%emt 0:00:47]} Kb7 {[%emt 0:00:06]} 25. Re1 {[%emt 0:07:55]} Nf5 {[%emt 0:10:05][%cal Of5g3]} 26. Re5 {[%emt 0:12:12][%csl LRd5,LRf5]} Be6 {[%emt 0:00:15]} 27. Bc4 {[%emt 0:00:32]} Bxc4 {[%emt 0:13:16]} 28. Rxf5 {[%emt 0:00:02]} Bxa2 $2 {[%emt 0:00:05][%mdl 12288] Endgame. [#] KRB-KRB. A mistake that costs the game.} (28... Kxa7 $16 {is a better chance.} 29. b3 (29. Bxc7 Rc8 $18) 29... Be6) 29. b3 $1 $18 {[%emt 0:00:52][%mdl 512] White is clearly winning.} Re8 {[%emt 0:00:54]} 30. Rb5+ {[%emt 0:01:18]} (30. Rxf7 Bxb3 31. Rxc7+ Ka8 $18) ({Weaker is} 30. Rxg5 Ka8 31. Rb5 (31. Bxc7 Kxa7 32. Ra5+ Kb7 $18) 31... Re2 32. Bxc7 (32. Kd1 Rb2 $18) 32... Kxa7 $18) 30... Ka6 {[%emt 0:00:06]} 31. Re5 {[%emt 0:01:07]} Rd8 {[%emt 0:00:47]} 32. Kb2 {[%emt 0:01:42][%cal Oe5a5] aiming for Ra5+!} Rd2+ {[%emt 0:00:11]} 33. Kc3 {[%emt 0:00:04]} Rd8 {[%emt 0:00:04]} 34. Re1 {[%emt 0:00:30]} Bxb3 {[%emt 0:02:41]} 35. Ra1+ {[%emt 0:00:13] Weighted Error Value: White=0.45/Black=0.53.  Loses game:     	---       	Black=1      Mistake:       	---       	Black=1      Inaccurate:     	---       	Black=2      OK:         	White=14    	Black=7      Best:        	White=2     	Black=5      Strong:       	White=1     	---} 1-0

[Event "53rd Mar Del Plata Open 2024"]
[Site "Mar Del Plata"]
[Date "2024.03.30"]
[Round "8.2"]
[White "Acosta, Pablo Ismael"]
[Black "Felgaer, Ruben"]
[Result "1-0"]
[ECO "A35"]
[WhiteElo "2463"]
[BlackElo "2565"]
[Annotator "TA"]
[PlyCount "91"]
[EventDate "2024.03.23"]
[EventType "swiss"]
[EventCountry "ARG"]
[SourceTitle "playchess.com"]
[Source "ChessBase"]
[SourceQuality "1"]
[TimeControl "5400+30"]

{[%evp 15,91,-15,14,-50,-40,-36,-9,-17,-6,-30,-16,-49,-31,-61,-73,-78,-79,-79,-62,-70,-54,-89,-49,-71,-54,-101,-97,-108,-106,-116,-83,-78,-84,-78,-35,-60,260,258,258,253,255,267,291,268,277,260,272,268,309,270,386,392,388,402,402,402,402,402,402,402,402,387,503,497,570,570,570,470,577,570,562,325,1142,1129,1100,1078,952,907]} 1. c4 {[%emt 0:00:05]} c5 {[%emt 0:00:57]} 2. Nc3 {[%emt 0:00:58]} g6 {[%emt 0:00:36]} 3. Nf3 {[%emt 0:00:17]} Bg7 {[%emt 0:00:20]} 4. e3 {[%emt 0:01:19]} Nf6 {[%emt 0:01:29]} 5. d4 {[%emt 0:00:19]} cxd4 {[%emt 0:02:05]} 6. Nxd4 {[%emt 0:00:32]} O-O {[%emt 0:00:19]} 7. Be2 {[%emt 0:03:35]} d5 {[%emt 0:07:28]} 8. O-O {[%emt 0:02:15]} Nc6 {[%emt 0:03:54]} 9. Bf3 {[%emt 0:21:25] A35: Symmetrical English: 2 Nc3 Nc6 3 Nf3.} (9. b3 $11) 9... Nxd4 {[%emt 0:05:57]} 10. Qxd4 {[%emt 0:14:24]} Be6 {[%emt 0:00:26] With the idea ...Ne4.} 11. cxd5 $146 {[%emt 0:00:40] [#]} ({Predecessor:} 11. Qc5 Nd7 12. Qa3 Ne5 13. cxd5 Nxf3+ 14. gxf3 Bh3 15. Rd1 e6 16. e4 Qh4 17. dxe6 fxe6 {0-1 Holzklau,I (2168)-Thiering,E (2343) GER-ch36 fin email 2006}) 11... Nxd5 $1 {[%emt 0:00:08]} 12. Qa4 {[%emt 0:00:22]} (12. Qc5 Nxc3) 12... Nb6 {[%emt 0:12:26]} 13. Qf4 {[%emt 0:02:49]} Qb8 {[%emt 0:25:00]} 14. Rd1 {[%emt 0:11:20]} Rd8 {[%emt 0:03:32]} 15. Qb4 {[%emt 0:03:21]} Rxd1+ {[%emt 0:02:17]} 16. Nxd1 {[%emt 0:00:25]} Qd8 {[%emt 0:01:55]} 17. h3 {[%emt 0:08:03][%cal Ob4e1]} Rc8 {[%emt 0:05:03]} 18. e4 {[%emt 0:01:09]} Rc4 {[%emt 0:04:31]} 19. Qe1 {[%emt 0:01:34]} Nd7 {[%emt 0:07:41]} 20. Ne3 {[%emt 0:02:14]} (20. Be2 $15 Rc2 (20... Rxe4 21. Be3 $15) 21. Nc3 Bxc3 22. bxc3) 20... Ra4 $17 {[%emt 0:01:52][%cal Od7e5]} 21. Nd5 {[%emt 0:05:02]} Ne5 {[%emt 0:01:06]} 22. Bd1 {[%emt 0:00:14]} Rd4 {[%emt 0:00:52]} 23. Bb3 {[%emt 0:00:25]} Nd3 {[%emt 0:02:06]} 24. Qe2 {[%emt 0:02:20]} Nc5 {[%emt 0:01:28]} 25. Bg5 $1 {[%emt 0:01:03]} Rxe4 $2 {[%emt 0:01:08][%mdl 8192] [#]} (25... Nxe4 $2 26. Nxe7+ $18) (25... Nxb3 $15 {keeps the upper hand.} 26. Nxe7+ Qxe7 27. Bxe7 Nxa1) 26. Qxe4 $3 $18 {[%emt 0:00:18][%mdl 512]} Nxe4 {[%emt 0:01:18]} 27. Nxe7+ {[%emt 0:00:05]} Qxe7 {[%emt 0:01:22]} 28. Bxe7 {[%emt 0:00:04]} Bxb2 {[%emt 0:01:51]} 29. Rd1 {[%emt 0:02:32]} Bxb3 {[%emt 0:01:31]} 30. axb3 {[%emt 0:00:04][%mdl 4096] Endgame. KRB-KBN} b6 {[%emt 0:00:28]} 31. g4 {[%emt 0:00:51]} Bc3 {[%emt 0:01:55]} 32. Rd3 {[%emt 0:01:09] aiming for f3.} Bb2 {[%emt 0:01:13]} (32... Kg7 $142 33. g5 Ba1) 33. f3 {[%emt 0:03:40]} Nc5 {[%emt 0:00:28]} 34. Bxc5 {[%emt 0:00:34]} bxc5 {[%emt 0:00:01] KR-KB} 35. Rd8+ {[%emt 0:01:31]} Kg7 {[%emt 0:00:06]} 36. Ra8 {[%emt 0:00:03]} Bc3 {[%emt 0:00:54]} 37. Kg2 {[%emt 0:00:50]} ({Not} 37. Rxa7 c4 38. Rb7 (38. bxc4 $2 {is the wrong capture.} Bd4+ 39. Kg2 Bxa7 $19) 38... cxb3 39. Rxb3 Bd2 $16) 37... a5 {[%emt 0:00:05]} 38. f4 {[%emt 0:00:10]} h6 {[%emt 0:02:47]} 39. Kf3 {[%emt 0:00:37]} Kf6 {[%emt 0:00:11]} 40. Ra6+ {[%emt 0:00:29]} Kg7 {[%emt 0:00:11]} 41. Ke4 {[%emt 0:00:23]} Bd2 {[%emt 0:00:44]} 42. Rc6 {[%emt 0:00:18]} Bb4 {[%emt 0:00:08]} 43. Kd5 {[%emt 0:00:22]} h5 $2 {[%emt 0:01:17]} (43... Be1 44. Rxc5 (44. Kxc5 Kh7 $18) 44... Bb4) 44. g5 {[%emt 0:01:27]} Bd2 {[%emt 0:00:32]} 45. Ke4 {[%emt 0:00:18]} Bb4 {[%emt 0:00:07]} 46. f5 {[%emt 0:01:51]} 1-0

[Event "53rd Mar Del Plata Open 2024"]
[Site "Mar Del Plata"]
[Date "2024.03.30"]
[Round "8.3"]
[White "Kiselev, Vitalii"]
[Black "Melian, Juan Sebastian"]
[Result "1-0"]
[ECO "E22"]
[WhiteElo "2519"]
[BlackElo "2157"]
[Annotator "TA"]
[PlyCount "92"]
[EventDate "2024.03.23"]
[EventType "swiss"]
[EventCountry "ARG"]
[SourceTitle "playchess.com"]
[Source "ChessBase"]
[SourceQuality "1"]
[TimeControl "5400+30"]

{[%evp 10,92,14,12,29,35,42,26,25,23,35,24,25,6,30,8,18,-4,10,9,8,0,20,16,18,22,17,0,0,0,0,-15,-11,0,0,0,0,-14,0,0,0,0,14,0,0,0,0,0,0,-10,0,0,0,0,0,0,0,0,0,0,82,81,81,35,289,275,368,373,355,278,277,273,280,281,278,281,264,260,365,357,358,358,341,274,249]} 1. d4 {[%emt 0:14:11]} Nf6 {[%emt 0:00:08]} 2. c4 {[%emt 0:00:12]} e6 {[%emt 0:00:06]} 3. Nc3 {[%emt 0:00:04]} Bb4 {[%emt 0:00:06]} 4. Qb3 {[%emt 0:00:04]} c5 {[%emt 0:00:27]} 5. dxc5 {[%emt 0:00:05]} Bxc5 {[%emt 0:08:25]} 6. Nf3 {[%emt 0:00:10]} Qc7 {[%emt 0:04:45]} 7. Bg5 {[%emt 0:02:54]} a6 {[%emt 0:00:09]} 8. e3 {[%emt 0:02:51]} Be7 {[%emt 0:02:45] White has an edge.} 9. Be2 {[%emt 0:02:09]} d6 {[%emt 0:00:11]} 10. O-O {[%emt 0:01:03]} Nbd7 {[%emt 0:00:43]} 11. Rfd1 {[%emt 0:08:07]} b6 {[%emt 0:02:15]} 12. Rac1 {[%emt 0:11:21]} Bb7 {[%emt 0:01:28]} 13. a3 {[%emt 0:10:31]} O-O {[%emt 0:03:53]} 14. Qa2 {[%emt 0:00:08]} Rac8 {[%emt 0:07:00]} 15. Nd2 {[%emt 0:04:13]} Rfe8 {[%emt 0:01:01]} 16. Bf4 {[%emt 0:06:31]} Qb8 {[%emt 0:07:39]} 17. b4 {[%emt 0:00:49]} h6 {[%emt 0:04:27]} 18. h3 {[%emt 0:00:54]} Red8 {[%emt 0:06:37]} 19. Rc2 {[%emt 0:06:59]} Qa8 {[%emt 0:06:50]} 20. Bf3 {[%emt 0:00:20]} Ne5 {[%emt 0:03:55][%cal Rb7f3]} 21. Bxe5 {[%emt 0:02:39]} dxe5 {[%emt 0:00:02]} 22. Bxb7 {[%emt 0:00:07]} Qxb7 {[%emt 0:00:05]} 23. Nf3 {[%emt 0:01:43]} e4 {[%emt 0:02:18]} 24. Rxd8+ {[%emt 0:02:01]} Rxd8 {[%emt 0:01:27]} 25. Nd4 {[%emt 0:05:05]} Bd6 {[%emt 0:00:37]} 26. Nce2 {[%emt 0:06:41]} Rc8 {[%emt 0:01:25]} 27. b5 {[%emt 0:04:26]} axb5 {[%emt 0:03:47]} 28. cxb5 {[%emt 0:00:02]} Rxc2 {[%emt 0:01:34]} 29. Nxc2 {[%emt 0:00:01]} Qc7 {[%emt 0:00:30]} 30. a4 {[%emt 0:00:30]} Qc5 {[%emt 0:00:30]} 31. Ncd4 {[%emt 0:00:30]} Qb4 {[%emt 0:30:55]} 32. Kf1 {[%emt 0:09:09] Against Qe1+} Nd5 {[%emt 0:00:00]} 33. Qc2 {[%emt 0:00:00]} Bc5 {[%emt 0:00:00]} 34. g3 {[%emt 0:00:00]} Bxd4 {[%emt 0:00:00]} (34... Qa3 $11) 35. Nxd4 $11 {[%emt 0:00:00][%cal Od4c6][%mdl 4096] Endgame. KQN-KQN} Nc3 {[%emt 0:00:00]} 36. Nc6 {[%emt 0:00:00]} (36. Kg2 $16) 36... Qc4+ $2 {[%emt 0:00:00][%mdl 8192] [#] This move loses the game for Black.} ({Better is} 36... Qc5 $1 $14) 37. Ke1 $1 $18 {[%emt 0:00:00]} f5 {[%emt 0:00:00]} 38. Kd2 {[%emt 0:00:00]} Qxa4 {[%emt 0:00:00]} 39. Qxc3 {[%emt 0:00:00]} Qxb5 {[%emt 0:00:00]} 40. Nd4 {[%emt 0:00:00][%csl LRb5,LRe6]} Qf1 {[%emt 0:00:00]} 41. Qc8+ {[%emt 0:00:00]} (41. Nxe6 $6 Qxf2+ 42. Kc1 Qxg3 $16) 41... Kh7 {[%emt 0:00:00]} 42. Ne2 {[%emt 0:00:00]} ({Less strong is} 42. Qxe6 Qd3+ 43. Kc1 Qf1+ 44. Kb2 Qxf2+ 45. Nc2 Qf1 $16) ({Worse is} 42. Nxe6 Qxf2+ 43. Kd1 (43. Kc3 Qxe3+ 44. Kb4 Qd2+ 45. Kb5 Qd3+ 46. Kxb6 Qxg3 $11) 43... Qxe3 $11) 42... Qb1 {[%emt 0:00:00]} 43. Qc2 {[%emt 0:00:00]} ({Not} 43. Qxe6 Qd3+ 44. Ke1 Qb1+ 45. Kd2 Qd3+ 46. Ke1 Qb1+ 47. Kd2 $11) 43... Qf1 {[%emt 0:00:00]} (43... Qb4+ $142 44. Kd1 Qd6+ 45. Ke1 Qd7) 44. Qb3 {[%emt 0:00:01][%csl LRb6,LRe6]} Qxf2 {[%emt 0:00:00]} 45. Qxe6 {[%emt 0:00:30]} b5 {[%emt 0:00:00]} 46. g4 {[%emt 0:06:29]} fxg4 {[%emt 0:05:12] Weighted Error Value: White=0.10 (very precise) /Black=0.26 (precise) .  Loses game:     	---       	Black=1      Mistake:       	White=1     	Black=2      Inaccurate:     	---       	Black=1      OK:         	White=14    	Black=9      Best:        	White=2     	Black=4      Strong:       	White=1     	---} 1-0